fUST/lending_fUST_20250110
["ID","MTS","AMOUNT","RATE_DAILY","PERIOD"]
[348383206,1736491539208,-573.24965809,0.00021158,2]
[348383207,1736491539231,-2481.75968097,0.00021498,2]
[348383210,1736491628108,-625.701,0.0002108,2]
[348383211,1736491628137,-300.0,0.00021498,2]
[348383212,1736491628161,-1303.0,0.00021498,2]
[348383213,1736491628183,-265.37046456,0.00021499,2]
[348383214,1736491628204,-344.53715425,0.00021499,2]
[348383215,1736491628228,-551.80941694,0.00021499,2]
[348383216,1736491628252,-500.0,0.00021499,2]
[348383217,1736491628277,-500.0,0.00021499,2]
[348383218,1736491628299,-500.0,0.00021499,2]
[348383219,1736491628325,-500.0,0.00021499,2]
[348383220,1736491628348,-92.25650284,0.00021499,2]
[348383221,1736491632086,-261.58081317,0.00021499,2]
[348383222,1736491637093,-62.10926003,0.00021499,2]
[348383223,1736491637118,-329.27160728,0.00021499,2]
[348383224,1736491637151,-184.40835269,0.00021499,2]
[348383225,1736491637181,-315.59164731,0.00021499,2]
[348383226,1736491637206,-500.0,0.00021499,2]
[348383227,1736491637229,-5.2805648,0.00021499,2]
[348383228,1736491642131,-512.78013909,0.00021499,2]
[348383229,1736491642157,-500.0,0.00021499,2]
[348383230,1736491642180,-500.0,0.00021499,2]
[348383231,1736491642203,-500.0,0.00021499,2]
[348383232,1736491642226,-500.0,0.00021499,2]
[348383233,1736491642248,-268.25594187,0.00021499,2]
[348383234,1736491648099,-231.74405813,0.00021499,2]
[348383235,1736491648123,-500.0,0.00021499,2]
[348383236,1736491648147,-6.1711424,0.00021499,2]
[348383237,1736491649089,-427.84600523,0.00021499,2]
[348383240,1736491748124,-484.15440645,0.00019399,2]
[348383295,1736491832081,-83.91965065,0.00019399,2]
[348383297,1736491832090,-1081.6477187,0.0002103,2]
[348383299,1736491832101,-65.98285237,0.00021499,2]
[348383301,1736491832114,-500.0,0.00021499,2]
[348383303,1736491832123,-45367.4497783,0.000215,5]
[348383305,1736491832135,-7846.9602217,0.000215,5]
[348383307,1736491832145,-541.65,0.00021895,7]
[348383309,1736491832154,-500.0,0.00021917,3]
[348383311,1736491832163,-500.0,0.00021917,3]
[348383313,1736491832173,-625.87548829,0.00021917,3]
[348383315,1736491832182,-209.08583398,0.00021917,3]
[348383317,1736491832191,-500.0,0.00021917,3]
[348383319,1736491832200,-175.496,0.00021995,2]
[348383321,1736491832209,-197.13246211,0.00021995,2]
[348383485,1736491837825,-302.86753789,0.00021995,2]
[348383487,1736491837834,-500.0,0.00021995,3]
[348383489,1736491837843,-500.0,0.00021995,3]
[348383491,1736491837853,-3504.71,0.00021995,3]
[348383493,1736491837862,-500.0,0.00021995,3]
[348383495,1736491837871,-500.0,0.00021995,3]
[348383497,1736491837881,-500.0,0.00021995,3]
[348383499,1736491837890,-500.0,0.00021995,3]
[348383501,1736491837899,-500.0,0.00021995,3]
[348383503,1736491837908,-500.0,0.00021995,3]
[348383505,1736491837917,-500.0,0.00021995,3]
[348383507,1736491837927,-500.0,0.00021995,3]
[348383509,1736491837936,-500.0,0.00021996,3]
[348383511,1736491837946,-1313.13,0.00021997,3]
[348383513,1736491837955,-10066.27,0.00021997,3]
[348383515,1736491837965,-500.0,0.00021997,3]
[348383517,1736491837974,-2000.0,0.00021998,2]
[348383519,1736491837984,-888.26,0.00021999,3]
[348383521,1736491837993,-180.0,0.00022,2]
[348383523,1736491838003,-167.602902,0.0002208,5]
[348383525,1736491838012,-339.5820683,0.000221,2]
[348383527,1736491838021,-500.0,0.00022191,3]
[348383529,1736491838030,-500.0,0.00022191,3]
[348383531,1736491838039,-284.02668915,0.00022191,3]
[348383534,1736491838049,-168.11462904,0.00022268,2]
[348383537,1736491838058,-187.41857382,0.00022268,2]
[348383539,1736491838067,-442.8274679,0.00022268,2]
[348383542,1736491838077,-500.0,0.00022269,2]
[348383544,1736491838086,-500.0,0.00022269,3]
[348383547,1736491838095,-603.0,0.00022269,3]
[348383550,1736491838106,-3504.71,0.00022269,3]
[348383552,1736491838117,-500.0,0.00022269,3]
[348383555,1736491838126,-500.0,0.00022269,3]
[348383558,1736491838135,-500.0,0.0002227,3]
[348383560,1736491838144,-1313.13,0.00022271,3]
[348383563,1736491838156,-10066.27,0.00022271,3]
[348383566,1736491838165,-2000.0,0.00022272,2]
[348383569,1736491838175,-888.26,0.00022273,3]
[348383572,1736491838184,-153.0,0.00022348,2]
[348383574,1736491838193,-2921.0,0.00022352,4]
[348383577,1736491838202,-153.466244,0.00022465,7]
[348383580,1736491838213,-500.0,0.00022465,3]
[348383583,1736491838222,-500.0,0.00022465,3]
[348383584,1736491838231,-500.0,0.00022543,2]
[348383585,1736491838240,-500.0,0.00022543,3]
[348383586,1736491838249,-3504.71,0.00022543,3]
[348383587,1736491838259,-500.0,0.00022543,3]
[348383589,1736491838268,-500.0,0.00022543,3]
[348383591,1736491838277,-500.0,0.00022544,3]
[348383593,1736491838286,-1313.13,0.00022545,3]
[348383595,1736491838296,-10066.27,0.00022545,3]
[348383597,1736491838305,-2000.0,0.00022546,2]
[348383599,1736491838315,-888.26,0.00022547,3]
[348383601,1736491838324,-1000.0,0.00022554,2]
[348383603,1736491838333,-1000.0,0.00022588,2]
[348383605,1736491838342,-1000.0,0.00022651,2]
[348383608,1736491838352,-500.0,0.00022739,3]
[348383610,1736491838362,-500.0,0.00022739,3]
[348383612,1736491838371,-831.970453,0.000228,2]
[348383614,1736491838380,-500.0,0.00022817,2]
[348383616,1736491838389,-500.0,0.00022817,3]
[348383618,1736491838399,-3504.71,0.00022817,3]
[348383620,1736491838408,-500.0,0.00022817,3]
[348383621,1736491838418,-459.01134374,0.00022817,3]
[348383623,1736491838427,-500.0,0.00022818,3]
[348383625,1736491838436,-1313.13,0.00022819,3]
[348383627,1736491838445,-10066.27,0.00022819,3]
[348383630,1736491838455,-2000.0,0.0002282,2]
[348383632,1736491838465,-344.16162705,0.00022821,3]
[348383635,1736491838489,-544.09837295,0.00022821,3]
[348383637,1736491838499,-232.36835734,0.00023,5]
[348383639,1736491838508,-4000.0,0.00023,5]
[348383641,1736491838518,-1224.0561115,0.00023,3]
[348383644,1736491838527,-62830.0,0.00023,3]
[348383646,1736491838537,-316.07161696,0.00023,2]
[348383648,1736491838546,-500.0,0.00023013,3]
[348383650,1736491838555,-500.0,0.00023013,3]
[348383652,1736491838565,-180.0,0.00023014,2]
[348383654,1736491838574,-5493.45492335,0.00023014,14]
[348383656,1736491838583,-500.0,0.00023091,2]
[348383658,1736491838593,-500.0,0.00023091,3]
[348383669,1736491838603,-3504.71,0.00023091,3]
[348383671,1736491838699,-500.0,0.00023091,3]
[348383673,1736491838709,-500.0,0.00023092,3]
[348383675,1736491838718,-1313.13,0.00023093,3]
[348383677,1736491838727,-10066.27,0.00023093,3]
[348383679,1736491838736,-2000.0,0.00023094,2]
[348383681,1736491838745,-888.26,0.00023095,3]
[348383683,1736491838755,-250.0,0.00023099,2]
[348383685,1736491838764,-276.211,0.00023099,2]
[348383687,1736491838773,-151.0,0.000231,5]
[348383689,1736491838782,-151.0,0.000231,5]
[348383691,1736491838791,-22530.47014231,0.00023133,2]
[348383693,1736491838803,-162.72,0.000232,31]
[348383695,1736491838812,-162.72,0.000232,31]
[348383697,1736491838822,-162.72,0.000232,31]
[348383699,1736491838831,-162.72,0.000232,31]
[348383701,1736491838841,-162.72,0.000232,31]
[348383703,1736491838850,-162.72,0.000232,31]
[348383705,1736491838859,-162.72,0.000232,31]
[348383707,1736491838868,-151.0,0.000232,5]
[348383709,1736491838877,-500.0,0.00023208,2]
[348383711,1736491838886,-150.26,0.00023208,2]
[348383713,1736491838895,-150.26,0.00023208,2]
[348383715,1736491838904,-500.0,0.00023208,2]
[348383717,1736491838914,-150.26,0.00023208,2]
[348383720,1736491838924,-150.96947285,0.00023208,2]
[348383722,1736491838933,-150.7630401,0.00023208,2]
[348383724,1736491838943,-150.3267171,0.00023208,2]
[348383726,1736491838952,-150.61524589,0.00023208,2]
[348383728,1736491838961,-500.0,0.00023208,2]
[348383730,1736491838970,-500.0,0.00023208,2]
[348383732,1736491838980,-150.26,0.00023208,2]
[348383734,1736491838989,-850.52373753,0.00023208,2]
[348383736,1736491838998,-150.26,0.00023208,2]
[348383738,1736491839007,-500.0,0.00023208,2]
[348383740,1736491839015,-173.0810668,0.00023208,2]
[348383742,1736491839024,-150.26,0.00023208,2]
[348383744,1736491839033,-500.0,0.00023208,2]
[348383746,1736491839042,-150.26,0.00023208,2]
[348383748,1736491839052,-500.0,0.00023208,2]
[348383750,1736491839060,-150.26,0.00023208,2]
[348383752,1736491839071,-20000.0,0.00023237,2]
[348383753,1736491839080,-32674.93585907,0.0002326,3]
[348383756,1736491839090,-207.20475476,0.0002327,7]
[348383758,1736491839099,-207.2,0.0002327,7]
[348383760,1736491839114,-155.40356607,0.0002327,7]
[348383762,1736491839123,-155.40356607,0.0002327,7]
[348383764,1736491839132,-155.40356607,0.0002327,7]
[348383766,1736491839141,-157.27905243,0.0002327,7]
[348383768,1736491839152,-157.27905243,0.0002327,7]
[348383770,1736491839161,-157.27905243,0.0002327,7]
[348383772,1736491839170,-157.27905243,0.0002327,7]
[348383774,1736491839180,-157.27905243,0.0002327,7]
[348383776,1736491839190,-157.27905243,0.0002327,7]
[348383778,1736491839199,-157.27905243,0.0002327,7]
[348383780,1736491839208,-157.27905243,0.0002327,7]
[348383782,1736491839217,-157.27905243,0.0002327,7]
[348383784,1736491839226,-157.27905243,0.0002327,7]
[348383786,1736491839235,-157.27905243,0.0002327,7]
[348383788,1736491839244,-157.27905243,0.0002327,7]
[348383790,1736491839253,-157.27905243,0.0002327,7]
[348383792,1736491839262,-157.27905243,0.0002327,7]
[348383794,1736491839272,-157.27905243,0.0002327,7]
[348383797,1736491839281,-157.27905243,0.0002327,7]
[348383799,1736491839290,-157.27,0.0002327,7]
[348383801,1736491839299,-200.53079185,0.0002327,7]
[348383803,1736491839308,-200.53079185,0.0002327,7]
[348383805,1736491839317,-200.53079185,0.0002327,7]
[348383807,1736491839326,-200.53079185,0.0002327,7]
[348383809,1736491839335,-200.53079185,0.0002327,7]
[348383811,1736491839345,-200.53079185,0.0002327,7]
[348383813,1736491839354,-200.53079185,0.0002327,7]
[348383815,1736491839363,-200.53079185,0.0002327,7]
[348383817,1736491839373,-200.53079185,0.0002327,7]
[348383819,1736491839382,-200.53079185,0.0002327,7]
[348383821,1736491839391,-200.53079185,0.0002327,7]
[348383823,1736491839401,-200.53079185,0.0002327,7]
[348383825,1736491839410,-200.53079185,0.0002327,7]
[348383827,1736491839420,-200.53079185,0.0002327,7]
[348383828,1736491839429,-200.53079185,0.0002327,7]
[348383829,1736491839438,-200.53079185,0.0002327,7]
[348383830,1736491839447,-200.53079185,0.0002327,7]
[348383831,1736491839456,-200.53079185,0.0002327,7]
[348383832,1736491839466,-200.53079185,0.0002327,7]
[348383833,1736491839475,-500.0,0.00023273,2]
[348383834,1736491839484,-537.72519612,0.00023273,2]
[348383835,1736491839493,-25252.08798653,0.00023275,2]
[348383836,1736491839502,-200.53,0.00023275,7]
[348383837,1736491839512,-155.4,0.00023275,7]
[348383838,1736491839521,-500.0,0.00023287,3]
[348383839,1736491839530,-500.0,0.00023287,3]
[348383840,1736491839539,-20000.0,0.00023291,3]
[348383841,1736491839549,-188.0,0.000233,2]
[348383842,1736491839558,-2000.0,0.000233,2]
[348383843,1736491839566,-150.0,0.000233,2]
[348383844,1736491839575,-300.0,0.000233,10]
[348383845,1736491839584,-1060.71,0.000233,2]
[348383846,1736491839593,-151.0,0.000233,5]
[348383847,1736491839603,-151.0,0.000233,5]
[348383848,1736491839611,-20000.0,0.00023324,4]
[348383849,1736491839621,-661.66,0.00023353,2]
[348383850,1736491839630,-1200.0,0.00023353,2]
[348383851,1736491839640,-20000.0,0.00023356,5]
[348383852,1736491839649,-209929.82723018,0.0002336,7]
[348383854,1736491839658,-501.06639573,0.00023365,9]
[348383856,1736491839667,-500.0,0.00023365,2]
[348383858,1736491839676,-500.0,0.00023365,3]
[348383860,1736491839685,-3504.71,0.00023365,3]
[348383862,1736491839694,-500.0,0.00023365,3]
[348383864,1736491839704,-500.0,0.00023366,3]
[348383866,1736491839713,-151.0,0.00023367,15]
[348383868,1736491839723,-1313.13,0.00023367,3]
[348383870,1736491839732,-10066.27,0.00023367,3]
[348383872,1736491839742,-2000.0,0.00023368,2]
[348383874,1736491839751,-888.26,0.00023369,3]
[348383876,1736491839760,-155.7184239,0.0002337,2]
[348383878,1736491839769,-214.7830993,0.0002337,2]
[348383880,1736491839778,-214.7830993,0.0002337,2]
[348383882,1736491839787,-214.7830993,0.0002337,2]
[348383884,1736491839797,-77491.31458797,0.0002337,10]
[348384014,1736492392468,177.771754,0.00013973,2]
[348384016,1736492753140,-177.771754,0.00020447,2]
[348384017,1736492753162,-923.7051708,0.00020757,2]
[348384018,1736492753183,-1890.10025312,0.00021,8]
[348384021,1736492840242,-2087.29268481,0.00021,8]
[348384022,1736492840264,-510.50538524,0.00021158,2]
[348384023,1736492840286,-2559.0,0.00021265,2]
[348384024,1736492840309,-554.11407226,0.0002127,2]
[348384025,1736492843103,-95.24808268,0.0002127,2]
[348384026,1736492843123,-655.36237888,0.00021377,2]
[348384027,1736492843151,-2695.20859952,0.00021377,2]
[348384028,1736492843171,-85.6495227,0.00021896,2]
[348384029,1736492844115,-71.22312664,0.00021896,2]
[348384030,1736492844138,-300.0,0.00021916,2]
[348384031,1736492844161,-500.0,0.00021917,3]
[348384032,1736492844187,-424.27018763,0.00021917,3]
[348384033,1736492960091,-490.0,0.00019796,2]
[348384072,1736493032226,-114.48924451,0.00019796,2]
[348384074,1736493032236,-300.0,0.00021916,2]
[348384076,1736493032245,-501.5762986,0.00021917,2]
[348384078,1736493032255,-501.1591255,0.00021917,2]
[348384080,1736493032264,-192.96,0.00021917,3]
[348384082,1736493032273,-500.0,0.00021917,3]
[348384084,1736493032282,-500.0,0.00021917,3]
[348384087,1736493032292,-7578.93,0.00021917,3]
[348384088,1736493032302,-500.0,0.00021917,3]
[348384090,1736493032311,-340.65846001,0.00021993,3]
[348384092,1736493032320,-500.0,0.00021993,3]
[348384094,1736493032329,-500.0,0.00021993,3]
[348384097,1736493032339,-507.79065956,0.00021993,3]
[348384099,1736493032348,-500.0,0.00021993,2]
[348384101,1736493032357,-524.94199253,0.00021993,3]
[348384103,1736493032367,-2628.53,0.00021993,3]
[348384105,1736493032377,-500.0,0.00021993,3]
[348384107,1736493032386,-500.0,0.00021994,3]
[348384109,1736493032395,-500.0,0.00021994,2]
[348384111,1736493032404,-500.0,0.00021994,3]
[348384113,1736493032414,-500.0,0.00021994,3]
[348384115,1736493032423,-500.0,0.00021994,3]
[348384117,1736493032432,-500.0,0.00021994,3]
[348384119,1736493032442,-608.10065513,0.00021994,3]
[348384121,1736493032451,-500.0,0.00021994,2]
[348384123,1736493032460,-500.0,0.00021994,2]
[348384125,1736493032469,-500.0,0.00021994,2]
[348384126,1736493032478,-500.0,0.00021994,2]
[348384127,1736493032488,-451.80607039,0.00021994,2]
[348384128,1736493032498,-500.0,0.00021995,3]
[348384129,1736493032507,-374.39,0.00021995,3]
[348384130,1736493032516,-500.0,0.00021995,3]
[348384131,1736493032526,-1049.11,0.00021996,3]
[348384132,1736493032535,-173.992,0.00021996,2]
[348384133,1736493032546,-2000.0,0.00021996,2]
[348384134,1736493032555,-666.2,0.00021996,3]
[348384135,1736493032564,-195.0,0.00022,2]
[348384136,1736493032573,-156.87264933,0.00022091,2]
[348384137,1736493032583,-7578.93,0.00022191,3]
[348384138,1736493032592,-500.0,0.00022191,3]
[348384139,1736493032601,-649.586,0.000222,2]
[348384140,1736493032611,-2628.53,0.00022267,3]
[348384141,1736493032620,-500.0,0.00022268,2]
[348384142,1736493032629,-500.0,0.00022268,3]
[348384143,1736493032639,-500.0,0.00022268,3]
[348384144,1736493032648,-500.0,0.00022268,3]
[348384145,1736493032658,-1049.11,0.0002227,3]
[348384146,1736493032667,-2000.0,0.0002227,2]
[348384147,1736493032677,-666.2,0.0002227,3]
[348384148,1736493032686,-7578.93,0.00022465,3]
[348384149,1736493032696,-349.54968786,0.00022465,3]
[348384150,1736493032705,-2628.53,0.00022541,3]
[348384151,1736493032714,-500.0,0.00022542,2]
[348384152,1736493032724,-500.0,0.00022542,3]
[348384153,1736493032733,-500.0,0.00022542,3]
[348384154,1736493032743,-500.0,0.00022542,3]
[348384155,1736493032753,-1049.11,0.00022544,3]
[348384156,1736493032762,-892.63911612,0.00022544,2]
[348384768,1736493589981,174.453542,0.00013973,2]
[348384772,1736493935139,-551.33298681,0.00020441,2]
[348384773,1736493935162,-174.453542,0.00020447,2]
[348384774,1736493935185,-286.73686696,0.00021917,2]
[348384782,1736494026101,-1713.26313304,0.00021917,2]
[348384783,1736494026126,-610.68,0.00021917,3]
[348384784,1736494026147,-3059.04650108,0.00021993,2]
[348384785,1736494039113,-148.95349892,0.00021993,2]
[348384786,1736494039143,-500.0,0.00021993,2]
[348384787,1736494039174,-578.66271673,0.00021993,2]
[348384788,1736494039204,-2714.40860484,0.00021994,3]
[348384789,1736494044106,-706.22890816,0.00021994,3]
[348384792,1736494172178,-151.64560958,0.00019,2]
[348384793,1736494172212,-483.81600332,0.00019894,2]
[348384838,1736494232564,-56.53007588,0.00019894,2]
[348384839,1736494232573,-160.0,0.00021685,5]
[348384840,1736494232583,-917.97,0.00021917,3]
[348384841,1736494232593,-363.64847988,0.00021993,3]
[348384842,1736494232603,-2017.27165987,0.00021994,3]
[348384892,1736494238467,-1193.66082713,0.00021994,3]
[348384894,1736494238476,-610.68,0.00021997,3]
[348384896,1736494238486,-300.0,0.00021998,2]
[348384898,1736494238496,-500.0,0.00021999,2]
[348384900,1736494238505,-500.0,0.00021999,2]
[348384902,1736494238514,-500.0,0.00021999,2]
[348384904,1736494238524,-500.0,0.00021999,2]
[348384906,1736494238534,-500.0,0.00021999,2]
[348384908,1736494238548,-500.0,0.00021999,2]
[348384910,1736494238558,-500.0,0.00021999,2]
[348384912,1736494238567,-500.0,0.00021999,2]
[348384914,1736494238577,-500.0,0.00021999,2]
[348384917,1736494238586,-500.0,0.00021999,2]
[348384919,1736494238596,-392.00725285,0.00021999,2]
[348384920,1736494238605,-489.99208685,0.00021999,2]
[348384922,1736494238615,-500.0,0.00021999,2]
[348384925,1736494238625,-500.0,0.00021999,2]
[348384927,1736494238634,-500.0,0.00021999,2]
[348384929,1736494238643,-484.37217799,0.00021999,2]
[348384931,1736494238653,-434.55068662,0.00021999,2]
[348384933,1736494238663,-533.33174972,0.00021999,2]
[348384935,1736494238672,-232.36835734,0.00022,5]
[348384937,1736494238681,-11238.7,0.00022,3]
[348384939,1736494238691,-178.0,0.00022,3]
[348384941,1736494238705,-178.0,0.00022,4]
[348384943,1736494238714,-177.42162146,0.00022,7]
[348384945,1736494238723,-61603.82597015,0.00022,2]
[348385718,1736494616340,174.717668,0.00013973,2]
[348386179,1736495146144,-500.0,0.00018966,2]
[348386180,1736495146167,-684.49442317,0.000199,2]
[348386181,1736495146188,-2231.15444481,0.0002,4]
[348386182,1736495146210,-174.717668,0.00020447,2]
[348386183,1736495146235,-942.73414079,0.00020998,2]
[348386184,1736495225115,-968.00618751,0.00020998,2]
[348386185,1736495225140,-573.24965809,0.00021158,2]
[348386186,1736495225164,-300.0,0.00021639,2]
[348386187,1736495225187,-3631.45020255,0.00021639,2]
[348386188,1736495230116,-152.54979745,0.00021639,2]
[348386189,1736495230139,-423.23942255,0.0002164,2]
[348386190,1736495230170,-877.33432232,0.0002164,2]
[348386191,1736495235104,-734.74657129,0.0002164,2]
[348386192,1736495240132,-7732.21274384,0.0002164,2]
[348386193,1736495240155,-480.32054085,0.00021649,2]
[348386194,1736495240181,-551.80941694,0.00021649,2]
[348386195,1736495240205,-500.0,0.00021649,2]
[348386196,1736495240233,-500.0,0.00021649,2]
[348386197,1736495240257,-329.27160728,0.00021649,2]
[348386198,1736495240279,-537.23102713,0.00021649,2]
[348386199,1736495240301,-301.74613632,0.00021649,2]
[348386200,1736495240326,-500.0,0.00021649,2]
[348386201,1736495240352,-500.0,0.00021649,2]
[348386202,1736495240375,-500.0,0.00021649,2]
[348386203,1736495240400,-500.0,0.00021649,2]
[348386204,1736495240422,-500.0,0.00021649,2]
[348386205,1736495240444,-636.43237359,0.00021649,2]
[348386206,1736495240468,-25.79006998,0.00021649,2]
[348386207,1736495242087,-261.58081317,0.00021649,2]
[348386208,1736495249092,-212.62911685,0.00021649,2]
[348386209,1736495249116,-215.21688838,0.00021649,2]
[348386211,1736495346132,-554.28253503,0.00019549,2]
[348386234,1736495432585,-63.43188256,0.00019549,2]
[348386236,1736495432595,-300.0,0.00019999,2]
[348386238,1736495432604,-500.0,0.00019999,2]
[348386239,1736495432613,-500.0,0.00019999,2]
[348386241,1736495432622,-500.0,0.00019999,2]
[348386243,1736495432631,-500.0,0.00019999,2]
[348386245,1736495432640,-500.0,0.00019999,2]
[348386247,1736495432650,-413.17486683,0.00019999,2]
[348386249,1736495432659,-8358.98822756,0.0002,2]
[348386494,1736495440667,-1895.48,0.0002,2]
[348386500,1736495440725,-12318.18580209,0.0002,2]
[348386502,1736495440739,-420.0,0.00021777,2]
[348386504,1736495440749,-289.56,0.00021917,2]
[348386506,1736495440758,-2000.0,0.00021917,2]
[348386508,1736495440771,-504.47005334,0.00021917,3]
[348386510,1736495440779,-315.31064899,0.00021917,2]
[348386512,1736495440789,-3028.07592221,0.00021917,3]
[348386753,1736495446696,-3327.17407779,0.00021917,3]
[348386754,1736495446706,-507.28388978,0.00021917,3]
[348386755,1736495446715,-163.20680295,0.00021961,2]
[348386756,1736495446725,-411.11157055,0.00021973,2]
[348386757,1736495446736,-559.79,0.00021992,3]
[348386758,1736495446746,-500.0,0.00021992,3]
[348386759,1736495446755,-500.0,0.00021992,3]
[348386760,1736495446764,-879.72,0.00021994,3]
[348386761,1736495446774,-2432.17,0.00021999,3]
[348386762,1736495446783,-607.37,0.00021999,3]
[348386763,1736495446793,-173.99243625,0.00022,2]
[348386764,1736495446802,-232.36835734,0.00022,5]
[348386765,1736495446812,-92947.98315026,0.00022,2]
[348386766,1736495446822,-151.0,0.00022,2]
[348386767,1736495446832,-566.71261379,0.00022061,2]
[348386768,1736495446841,-500.0,0.00022174,3]
[348386769,1736495446851,-2000.0,0.00022191,2]
[348386770,1736495446861,-6355.25,0.00022191,3]
[348386771,1736495446870,-712.342,0.000222,2]
[348386772,1736495446879,-163.20680291,0.00022224,2]
[348386773,1736495446889,-559.79,0.00022266,3]
[348386774,1736495446899,-879.72,0.00022268,3]
[348386775,1736495446908,-2432.17,0.00022273,3]
[348386776,1736495446917,-500.0,0.00022448,3]
[348386777,1736495446927,-2000.0,0.00022465,2]
[348386778,1736495446936,-6355.25,0.00022465,3]
[348386779,1736495447052,-163.20680291,0.00022486,2]
[348386780,1736495447062,-559.79,0.0002254,3]
[348386781,1736495447072,-879.72,0.00022542,3]
[348386782,1736495447082,-2432.17,0.00022547,3]
[348386783,1736495447091,-500.0,0.00022722,3]
[348386784,1736495447101,-2000.0,0.00022739,2]
[348386785,1736495447110,-6355.25,0.00022739,3]
[348386786,1736495447120,-150.463,0.00022746,2]
[348386787,1736495447129,-1455.451,0.00022746,2]
[348386788,1736495447139,-163.20680291,0.00022749,2]
[348386789,1736495447148,-559.79,0.00022814,3]
[348386790,1736495447158,-879.72,0.00022816,3]
[348386791,1736495447168,-2432.17,0.00022821,3]
[348386792,1736495447178,-2988.39160882,0.0002287,2]
[348386793,1736495447188,-2559.0,0.00022966,4]
[348386794,1736495447197,-500.0,0.00022996,3]
[348386795,1736495447207,-150.0,0.00023,2]
[348386796,1736495447217,-7587.6536821,0.00023,2]
[348386797,1736495447227,-30552.84306939,0.00023,30]
[348386798,1736495447237,-163.20680291,0.00023011,2]
[348386799,1736495447247,-2000.0,0.00023013,2]
[348386800,1736495447256,-6355.25,0.00023013,3]
[348386801,1736495447265,-4394.76393868,0.00023067,14]
[348386802,1736495447275,-559.79,0.00023088,3]
[348386803,1736495447285,-879.72,0.0002309,3]
[348386804,1736495447294,-2432.17,0.00023095,3]
[348386805,1736495447304,-500.0,0.0002327,3]
[348386806,1736495447313,-152.32981956,0.00023274,7]
[348386807,1736495447322,-152.32981956,0.00023274,7]
[348386808,1736495447331,-152.32,0.00023274,7]
[348386809,1736495447340,-171.371047,0.00023274,7]
[348386810,1736495447350,-171.371047,0.00023274,7]
[348386811,1736495447359,-171.371047,0.00023274,7]
[348386812,1736495447369,-171.37,0.00023274,7]
[348386813,1736495447379,-1213.77526725,0.00023274,2]
[348386814,1736495447388,-163.20680291,0.00023274,2]
[348386815,1736495447398,-1115.25492289,0.00023287,2]
[348386816,1736495447408,-6355.25,0.00023287,3]
[348386817,1736495447417,-2000.0,0.000233,2]
[348386818,1736495447427,-999.28,0.000233,2]
[348386819,1736495447437,-151.0,0.000233,8]
[348386820,1736495447446,-300.0,0.000233,10]
[348386821,1736495447456,-559.79,0.00023362,3]
[348386822,1736495447465,-879.72,0.00023364,3]
[348386823,1736495447475,-151.0,0.00023369,2]
[348386824,1736495447484,-2432.17,0.00023369,3]
[348386825,1736495447496,-428364.11582465,0.0002337,10]
[348386828,1736495860723,194.338309,0.00013973,2]
[348386830,1736495958041,196.23,0.00023,120]
[348386831,1736496340123,-194.338309,0.00020447,2]
[348386832,1736496340145,-2715.0,0.00021265,2]
[348386833,1736496340164,-236.39121881,0.0002127,2]
[348386834,1736496429138,-510.50538524,0.00021158,2]
[348386835,1736496429162,-182.77711679,0.0002127,2]
[348386836,1736496429184,-500.0,0.00021662,7]
[348386837,1736496429206,-60.39491305,0.00021817,2]
[348386838,1736496437097,-148.45543187,0.00021817,2]